lending/lending_fUSD_20240610
["ID","MTS","AMOUNT","RATE_DAILY","PERIOD"]
[328936595,1718011839622,-172.1584606,0.00028514,2]
[328936598,1718011839641,-447.0,0.00028556,2]
[328936600,1718011839651,-809.0,0.00028556,2]
[328936602,1718011839662,-2406.0,0.00028556,2]
[328936604,1718011839673,-165.0,0.00028556,2]
[328936605,1718011839683,-150.0,0.00028556,2]
[328936607,1718011839693,-546.0,0.00028556,2]
[328936609,1718011839702,-1304.0,0.00028556,2]
[328936611,1718011839713,-3176.0,0.00028556,2]
[328936613,1718011839724,-1978.0,0.00028556,2]
[328936615,1718011839734,-1065.0,0.00028556,2]
[328936617,1718011839745,-5784.0,0.00028556,2]
[328936619,1718011839756,-5155.0,0.00028556,2]
[328936621,1718011839769,-978.0,0.00028556,2]
[328936623,1718011839780,-358.0,0.00028556,2]
[328936625,1718011839791,-290.0,0.00028556,2]
[328936627,1718011839802,-1573.0,0.00028556,2]
[328936629,1718011839814,-1142.01602645,0.00028604,2]
[328936631,1718011839824,-13546.49043721,0.00028651,2]
[328936633,1718011839834,-342.841585,0.00028704,2]
[328936635,1718011839845,-514.262377,0.00028704,2]
[328936637,1718011839856,-1142.01602642,0.00028748,2]
[328936639,1718011839867,-3000.0,0.0002875,2]
[328936641,1718011839878,-166.126,0.00028751,4]
[328936643,1718011839889,-166.127,0.00028751,4]
[328936646,1718011839916,-166.127,0.00028751,4]
[328936648,1718011839927,-166.126,0.00028751,4]
[328936650,1718011839938,-166.127,0.00028751,4]
[328936652,1718011839950,-155.89137976,0.00028777,2]
[328936654,1718011839961,-13546.49043718,0.0002879,2]
[328936656,1718011839971,-1142.01602642,0.00028892,2]
[328936658,1718011839982,-21677.1803,0.000289,2]
[328936660,1718011839992,-643.86951469,0.00028906,2]
[328936662,1718011840003,-155.89137984,0.00028913,2]
[328936664,1718011840014,-13546.49043718,0.00028929,2]
[328936666,1718011840024,-221.0,0.00028951,4]
[328936668,1718011840035,-175.94,0.0002899,2]
[328936670,1718011840046,-500.0,0.00028999,2]
[328936672,1718011840056,-297.16898146,0.00028999,2]
[328936674,1718011840067,-500.0,0.00029,2]
[328936676,1718011840078,-448.44778358,0.00029,2]
[328936678,1718011840089,-34978.80794722,0.00029,2]
[328936680,1718011840099,-259.02396414,0.00029,2]
[328936682,1718011840110,-1203.69209202,0.00029,2]
[328936684,1718011840120,-108909.72497242,0.00029,2]
[328936686,1718011840131,-476.26092759,0.00029006,2]
[328936687,1718011840141,-1142.01602642,0.00029036,15]
[328936690,1718011840151,-500.0,0.00029041,4]
[328936692,1718011840161,-500.0,0.00029041,4]
[328936694,1718011840172,-500.0,0.00029041,4]
[328936695,1718011840182,-500.0,0.00029041,4]
[328936698,1718011840195,-500.0,0.00029041,4]
[328936700,1718011840206,-500.0,0.00029041,4]
[328936701,1718011840216,-500.0,0.00029041,4]
[328936703,1718011840227,-290.77707592,0.00029041,4]
[328936705,1718011840237,-500.0,0.00029041,4]
[328936707,1718011840247,-500.0,0.00029041,4]
[328936708,1718011840256,-500.0,0.00029041,4]
[328936709,1718011840266,-552.55191018,0.00029041,4]
[328936710,1718011840276,-500.0,0.00029041,4]
[328936711,1718011840286,-510.90101307,0.00029041,4]
[328936712,1718011840296,-500.0,0.00029041,4]
[328936713,1718011840307,-500.0,0.00029041,4]
[328936714,1718011840318,-500.0,0.00029041,4]
[328936715,1718011840328,-249.08358636,0.00029041,4]
[328936716,1718011840337,-565.36384902,0.00029041,4]
[328936717,1718011840348,-500.0,0.00029041,4]
[328936718,1718011840357,-500.0,0.00029041,4]
[328936719,1718011840367,-500.0,0.00029041,4]
[328936720,1718011840378,-500.0,0.00029041,4]
[328936722,1718011840391,-500.0,0.00029041,4]
[328936724,1718011840402,-500.0,0.00029041,4]
[328936726,1718011840413,-500.0,0.00029041,4]
[328936728,1718011840424,-500.0,0.00029041,4]
[328936729,1718011840435,-500.0,0.00029041,4]
[328936731,1718011840446,-500.0,0.00029041,4]
[328936733,1718011840457,-212.01285936,0.00029041,4]
[328936736,1718011840468,-500.0,0.00029041,4]
[328936737,1718011840478,-500.0,0.00029041,4]
[328936740,1718011840489,-513.17070184,0.00029041,4]
[328936741,1718011840500,-500.0,0.00029041,4]
[328936743,1718011840510,-500.0,0.00029041,4]
[328936745,1718011840520,-500.0,0.00029041,4]
[328936748,1718011840534,-500.0,0.00029041,4]
[328936749,1718011840544,-530.20159412,0.00029041,4]
[328936751,1718011840554,-500.0,0.00029041,4]
[328936753,1718011840565,-526.01832305,0.00029041,4]
[328936755,1718011840576,-500.0,0.00029041,4]
[328936757,1718011840586,-500.0,0.00029041,4]
[328936759,1718011840597,-500.0,0.00029041,4]
[328936761,1718011840607,-180.02888243,0.00029041,4]
[328936763,1718011840618,-279.90326375,0.00029041,4]
[328936765,1718011840629,-546.90307256,0.00029041,4]
[328936767,1718011840640,-334.20574196,0.00029041,4]
[328936769,1718011840651,-233.69212997,0.00029041,4]
[328936771,1718011840661,-500.0,0.00029041,4]
[328936773,1718011840671,-513.32341312,0.00029041,4]
[328936775,1718011840681,-501.48283462,0.00029041,4]
[328936777,1718011840691,-500.0,0.00029041,4]
[328936779,1718011840701,-500.0,0.00029041,4]
[328936781,1718011840712,-500.0,0.00029041,4]
[328936783,1718011840722,-500.0,0.00029041,4]
[328936785,1718011840732,-500.0,0.00029041,4]
[328936787,1718011840743,-500.0,0.00029041,4]
[328936789,1718011840753,-500.0,0.00029041,4]
[328936790,1718011840764,-500.0,0.00029041,4]
[328936791,1718011840776,-500.0,0.00029041,4]
[328936793,1718011840786,-500.0,0.00029041,4]
[328936795,1718011840797,-500.0,0.00029041,4]
[328936796,1718011840807,-500.0,0.00029041,4]
[328936797,1718011840818,-500.0,0.00029041,4]
[328936798,1718011840828,-500.0,0.00029041,4]
[328936799,1718011840838,-500.0,0.00029041,4]
[328936800,1718011840850,-500.0,0.00029041,4]
[328936801,1718011840860,-500.0,0.00029041,4]
[328936802,1718011840871,-500.0,0.00029041,4]
[328936803,1718011840882,-354.17735271,0.00029041,4]
[328936804,1718011840893,-500.0,0.00029041,4]
[328936805,1718011840903,-500.0,0.00029041,4]
[328936806,1718011840914,-500.0,0.00029041,4]
[328936807,1718011840924,-500.0,0.00029041,4]
[328936808,1718011840934,-486.76,0.00029041,4]
[328936809,1718011840944,-500.0,0.00029041,4]
[328936810,1718011840954,-543.3349717,0.00029041,4]
[328936811,1718011840964,-500.0,0.00029041,4]
[328936812,1718011840974,-500.0,0.00029041,4]
[328936813,1718011840984,-159.99455473,0.00029041,4]
[328936814,1718011840994,-500.0,0.00029041,4]
[328936815,1718011841005,-500.0,0.00029041,4]
[328936816,1718011841016,-500.0,0.00029041,4]
[328936817,1718011841026,-500.0,0.00029041,4]
[328936818,1718011841037,-500.0,0.00029041,4]
[328936819,1718011841047,-554.35102464,0.00029041,4]
[328936820,1718011841058,-500.0,0.00029041,4]
[328936821,1718011841068,-366.86336692,0.00029041,4]
[328936822,1718011841079,-400.47004309,0.00029041,4]
[328936823,1718011841089,-500.0,0.00029041,4]
[328936824,1718011841100,-500.0,0.00029041,4]
[328936825,1718011841109,-500.0,0.00029041,4]
[328936826,1718011841119,-500.0,0.00029041,4]
[328936827,1718011841130,-500.0,0.00029041,4]
[328936828,1718011841144,-500.0,0.00029041,4]
[328936829,1718011841155,-507.87,0.00029041,4]
[328936830,1718011841165,-507.87,0.00029041,4]
[328936831,1718011841176,-534.88,0.00029041,4]
[328936832,1718011841187,-534.88,0.00029041,4]
[328936833,1718011841196,-500.0,0.00029041,4]
[328936834,1718011841206,-500.0,0.00029041,4]
[328936835,1718011841216,-500.0,0.00029041,4]
[328936836,1718011841226,-500.0,0.00029041,4]
[328936837,1718011841236,-500.0,0.00029041,4]
[328936838,1718011841247,-500.0,0.00029041,4]
[328936839,1718011841256,-500.0,0.00029041,4]
[328936840,1718011841267,-500.0,0.00029041,4]
[328936841,1718011841277,-500.0,0.00029041,4]
[328936842,1718011841287,-500.0,0.00029041,4]
[328936843,1718011841297,-500.0,0.00029041,4]
[328936844,1718011841308,-946.32,0.00029041,4]
[328936845,1718011841318,-500.0,0.00029041,4]
[328936846,1718011841328,-946.32,0.00029041,4]
[328936847,1718011841338,-500.0,0.00029041,4]
[328936848,1718011841348,-500.0,0.00029041,4]
[328936849,1718011841358,-500.0,0.00029041,4]
[328936850,1718011841367,-500.0,0.00029041,4]
[328936851,1718011841377,-500.0,0.00029041,4]
[328936852,1718011841390,-500.0,0.00029041,4]
[328936853,1718011841400,-500.0,0.00029041,4]
[328936854,1718011841410,-500.0,0.00029041,4]
[328936855,1718011841420,-500.0,0.00029041,4]
[328936856,1718011841431,-500.0,0.00029041,4]
[328936857,1718011841441,-500.0,0.00029041,4]
[328936858,1718011841451,-500.0,0.00029041,4]
[328936859,1718011841461,-513.54021814,0.00029041,4]
[328936860,1718011841471,-500.0,0.00029041,4]
[328936861,1718011841482,-500.0,0.00029041,4]
[328936862,1718011841492,-1419.84,0.00029041,4]
[328936863,1718011841502,-1419.84,0.00029041,4]
[328936864,1718011841512,-500.0,0.00029041,4]
[328936865,1718011841522,-500.0,0.00029041,4]
[328936866,1718011841533,-518.3,0.00029041,4]
[328936867,1718011841543,-518.3,0.00029041,4]
[328936868,1718011841553,-500.0,0.00029041,4]
[328936869,1718011841564,-500.0,0.00029041,4]
[328936870,1718011841574,-622.1,0.00029041,4]
[328936871,1718011841584,-622.1,0.00029041,4]
[328936872,1718011841594,-394.90027174,0.00029041,4]
[328936873,1718011841604,-500.0,0.00029041,4]
[328936874,1718011841615,-500.0,0.00029041,4]
[328936875,1718011841625,-301.06682891,0.00029041,4]
[328936876,1718011841639,-500.0,0.00029041,4]
[328936878,1718011841649,-271.72,0.00029041,4]
[328936879,1718011841659,-500.0,0.00029041,4]
[328936880,1718011841669,-500.0,0.00029041,4]
[328936881,1718011841679,-720.18,0.00029041,4]
[328936882,1718011841690,-720.18,0.00029041,4]
[328936883,1718011841700,-500.0,0.00029041,4]
[328936884,1718011841711,-500.0,0.00029041,4]
[328936885,1718011841721,-500.0,0.00029041,4]
[328936886,1718011841732,-500.0,0.00029041,4]
[328936887,1718011841742,-500.0,0.00029041,4]
[328936888,1718011841753,-500.0,0.00029041,4]
[328936889,1718011841764,-150.35001926,0.00029041,4]
[328936890,1718011841777,-500.0,0.00029041,2]
[328936891,1718011841787,-500.0,0.00029041,2]
[328936892,1718011841798,-500.0,0.00029041,4]
[328936893,1718011841809,-500.0,0.00029041,2]
[328936894,1718011841820,-500.0,0.00029041,4]
[328936895,1718011841830,-500.0,0.00029041,2]
[328936896,1718011841840,-500.0,0.00029041,4]
[328936897,1718011841851,-501.06047316,0.00029041,4]
[328936898,1718011841863,-500.0,0.00029041,4]
[328936899,1718011841874,-500.0,0.00029041,4]
[328936902,1718011841888,-500.0,0.00029041,4]
[328936905,1718011841901,-500.0,0.00029041,4]
[328936907,1718011841913,-500.0,0.00029041,4]
[328936908,1718011841925,-500.0,0.00029041,4]
[328936909,1718011841937,-500.0,0.00029041,4]
[328936910,1718011841948,-500.0,0.00029041,4]
[328936911,1718011841960,-500.0,0.00029041,4]
[328936912,1718011841971,-500.0,0.00029041,4]
[328936913,1718011841982,-500.0,0.00029041,4]
[328936914,1718011841992,-500.0,0.00029041,4]
[328936915,1718011842004,-500.0,0.00029041,4]
[328936916,1718011842015,-500.0,0.00029041,4]
[328936917,1718011842026,-620.5,0.00029041,4]
[328936918,1718011842037,-500.0,0.00029041,4]
[328936919,1718011842048,-620.5,0.00029041,4]
[328936920,1718011842059,-500.0,0.00029041,4]
[328936921,1718011842070,-500.0,0.00029041,4]
[328936922,1718011842080,-500.0,0.00029041,4]
[328936923,1718011842091,-500.0,0.00029041,4]
[328936924,1718011842103,-500.0,0.00029041,4]
[328936925,1718011842113,-500.0,0.00029041,4]
[328936926,1718011842125,-500.0,0.00029041,4]
[328936927,1718011842137,-500.0,0.00029041,4]
[328936928,1718011842148,-500.0,0.00029041,4]
[328936929,1718011842159,-385.12229556,0.00029041,4]
[328936930,1718011842169,-515.16708474,0.00029041,4]
[328936931,1718011842180,-500.0,0.00029041,4]
[328936932,1718011842191,-500.0,0.00029041,4]
[328936933,1718011842202,-500.0,0.00029041,4]
[328936934,1718011842212,-524.34452019,0.00029041,4]
[328936935,1718011842223,-500.0,0.00029041,4]
[328936936,1718011842234,-500.0,0.00029041,4]
[328936937,1718011842245,-500.0,0.00029041,4]
[328936938,1718011842256,-500.0,0.00029041,4]
[328936939,1718011842266,-500.0,0.00029041,4]
[328936940,1718011842276,-500.0,0.00029041,4]
[328936941,1718011842288,-500.0,0.00029041,4]
[328936942,1718011842298,-500.0,0.00029041,4]
[328936943,1718011842308,-500.0,0.00029041,4]
[328936944,1718011842319,-500.0,0.00029041,4]
[328936945,1718011842330,-7076.37,0.00029041,4]
[328936946,1718011842340,-7076.37,0.00029041,4]
[328936947,1718011842350,-500.0,0.00029041,4]
[328936948,1718011842361,-500.0,0.00029041,4]
[328936949,1718011842371,-1080.16,0.00029041,4]
[328936950,1718011842382,-1080.16,0.00029041,4]
[328936951,1718011842394,-500.0,0.00029041,4]
[328936952,1718011842404,-500.0,0.00029041,4]
[328936953,1718011842415,-500.0,0.00029041,4]
[328936954,1718011842425,-500.0,0.00029041,4]
[328936955,1718011842436,-500.0,0.00029041,4]
[328936956,1718011842446,-500.0,0.00029041,4]
[328936957,1718011842457,-500.0,0.00029041,4]
[328936958,1718011842468,-500.0,0.00029041,4]
[328936959,1718011842478,-500.0,0.00029041,4]
[328936960,1718011842489,-500.0,0.00029041,4]
[328936961,1718011842501,-500.0,0.00029041,4]
[328936962,1718011842512,-500.0,0.00029041,4]
[328936963,1718011842523,-500.0,0.00029041,4]
[328936964,1718011842533,-441.79266758,0.00029041,4]
[328936965,1718011842545,-500.0,0.00029041,4]
[328936966,1718011842556,-178.27422342,0.00029041,4]
[328936967,1718011842567,-500.0,0.00029041,4]
[328936968,1718011842579,-556.03,0.00029041,4]
[328936969,1718011842590,-500.0,0.00029041,4]
[328936970,1718011842601,-500.0,0.00029041,4]
[328936971,1718011842612,-556.03,0.00029041,4]
[328936972,1718011842623,-500.0,0.00029041,4]
[328936973,1718011842634,-500.0,0.00029041,4]
[328936974,1718011842645,-500.0,0.00029041,4]
[328936975,1718011842655,-500.0,0.00029041,4]
[328936976,1718011842666,-500.0,0.00029041,4]
[328936977,1718011842676,-500.0,0.00029041,4]
[328936978,1718011842687,-520.43658145,0.00029041,4]
[328936979,1718011842698,-500.0,0.00029041,4]
[328936980,1718011842708,-500.0,0.00029041,4]
[328936981,1718011842719,-366.57457367,0.00029041,4]
[328936982,1718011842730,-500.0,0.00029041,4]
[328936983,1718011842740,-500.0,0.00029041,4]
[328936984,1718011842751,-613.78,0.00029041,4]
[328936985,1718011842762,-613.78,0.00029041,4]
[328936986,1718011842779,-3488.49,0.00029041,4]
[328936987,1718011842789,-3488.49,0.00029041,4]
[328936988,1718011842801,-500.0,0.00029041,4]
[328936989,1718011842814,-500.0,0.00029041,4]
[328936990,1718011842825,-511.443601,0.00029041,4]
[328936991,1718011842836,-500.0,0.00029041,4]
[328936992,1718011842848,-500.0,0.00029041,4]
[328936993,1718011842861,-500.0,0.00029041,4]
[328936994,1718011842873,-521.40952533,0.00029041,4]
[328936995,1718011842883,-580.89,0.00029041,4]
[328936996,1718011842895,-500.0,0.00029041,4]
[328936997,1718011842905,-580.89,0.00029041,4]
[328936998,1718011842917,-326.29047472,0.00029041,4]
[328936999,1718011842927,-1545.05,0.00029041,4]
[328937000,1718011842938,-1545.05,0.00029041,4]
[328937001,1718011842949,-500.0,0.00029041,4]
[328937002,1718011842960,-185.07677288,0.00029041,2]
[328937003,1718011842971,-500.0,0.00029041,4]
[328937004,1718011842982,-217.25997221,0.00029041,4]
[328937005,1718011842993,-500.0,0.00029041,4]
[328937006,1718011843003,-500.0,0.00029041,4]
[328937007,1718011843013,-500.0,0.00029041,4]
[328937008,1718011843024,-500.0,0.00029041,4]
[328937009,1718011843034,-500.0,0.00029041,4]
[328937010,1718011843045,-500.0,0.00029041,4]
[328937011,1718011843056,-226.36578491,0.00029041,4]
[328937012,1718011843067,-500.0,0.00029041,4]
[328937013,1718011843078,-500.0,0.00029041,4]
[328937014,1718011843089,-526.23399282,0.00029041,4]
[328937015,1718011843101,-734.38,0.00029041,4]
[328937016,1718011843111,-734.38,0.00029041,4]
[328937017,1718011843122,-500.0,0.00029041,4]
[328937018,1718011843133,-500.0,0.00029041,4]
[328937019,1718011843143,-500.0,0.00029041,4]
[328937020,1718011843154,-500.0,0.00029041,4]
[328937021,1718011843164,-500.0,0.00029041,4]
[328937022,1718011843175,-500.0,0.00029041,4]
[328937023,1718011843185,-297.67849526,0.00029041,4]
[328937024,1718011843196,-526.99552208,0.00029041,4]
[328937025,1718011843206,-346.30032205,0.00029041,4]
[328937026,1718011843217,-500.0,0.00029041,4]
[328937027,1718011843228,-500.0,0.00029041,4]
[328937028,1718011843238,-500.0,0.00029041,4]
[328937029,1718011843249,-500.0,0.00029041,4]
[328937030,1718011843260,-500.0,0.00029041,4]
[328937031,1718011843270,-500.0,0.00029041,4]
[328937032,1718011843281,-500.0,0.00029041,4]
[328937033,1718011843292,-383.67475318,0.00029041,4]
[328937034,1718011843303,-500.0,0.00029041,4]
[328937035,1718011843314,-500.0,0.00029041,4]
[328937036,1718011843324,-951.05,0.00029041,4]
[328937037,1718011843334,-500.0,0.00029041,4]
[328937038,1718011843344,-500.0,0.00029041,4]
[328937039,1718011843354,-951.05,0.00029041,4]
[328937040,1718011843364,-500.0,0.00029041,4]
[328937041,1718011843375,-500.0,0.00029041,4]
[328937042,1718011843386,-510.45876592,0.00029041,4]
[328937043,1718011843396,-500.0,0.00029041,4]
[328937044,1718011843406,-500.0,0.00029041,4]
[328937045,1718011843417,-500.0,0.00029041,4]
[328937046,1718011843427,-500.0,0.00029041,4]
[328937047,1718011843437,-500.0,0.00029041,4]
[328937048,1718011843447,-500.0,0.00029041,4]
[328937049,1718011843458,-300.75626041,0.00029041,4]
[328937050,1718011843468,-1261.38,0.00029041,4]
[328937051,1718011843478,-500.0,0.00029041,4]
[328937052,1718011843489,-500.0,0.00029041,4]
[328937053,1718011843499,-1261.38,0.00029041,4]
[328937054,1718011843510,-500.0,0.00029041,4]
[328937055,1718011843521,-500.0,0.00029041,4]
[328937056,1718011843532,-500.0,0.00029041,4]
[328937057,1718011843543,-264.20872993,0.00029041,2]
[328937058,1718011843554,-417.44,0.00029041,2]
[328937059,1718011843565,-643.86951467,0.00029048,2]
[328937060,1718011843576,-520.56,0.0002906,2]
[328937061,1718011843587,-1909.1595951,0.00029067,15]
[328937063,1718011843608,-11637.33084208,0.00029067,15]
[328937064,1718011843619,-50000.0,0.0002907,2]
[328937065,1718011843630,-995.92,0.000291,2]
[328937066,1718011843641,-574.491772,0.000291,2]
[328937067,1718011843652,-836.0,0.00029113,2]
[328937068,1718011843662,-701.0,0.00029113,2]
[328937069,1718011843673,-180.0,0.00029118,2]
[328937070,1718011843684,-151.35,0.00029178,2]
[328937071,1718011843694,-1142.01602642,0.0002918,15]
[328937072,1718011843706,-167.0,0.00029189,2]
[328937073,1718011843717,-643.86951467,0.0002919,2]
[328937074,1718011843727,-1764.20834792,0.00029191,4]
[328937075,1718011843738,-500.0,0.00029199,4]
[328937076,1718011843749,-1041.78430808,0.000292,4]
[328937078,1718011844012,-20759.612,0.00028556,2]
[328937079,1718011844024,-616.0,0.00028556,2]
[328937080,1718011844035,-3395.36846555,0.000292,4]
[328937081,1718011844046,-1575.38,0.000292,2]
[328937082,1718011844057,-1575.38,0.000292,2]
[328937083,1718011844069,-1575.38,0.000292,2]
[328937084,1718011844080,-13546.49043718,0.00029206,15]
[328937085,1718011844091,-200.0,0.00029208,2]
[328937086,1718011844104,-500.0,0.00029208,2]
[328937087,1718011844115,-200.0,0.00029208,2]
[328937088,1718011844126,-150.0,0.00029214,2]
[328937089,1718011844139,-150.0,0.00029228,2]
[328937090,1718011844150,-150.0,0.00029237,2]
[328937091,1718011844161,-150.0,0.00029238,2]
[328937092,1718011844173,-150.0,0.0002925,2]
[328937093,1718011844184,-150.0,0.00029265,2]
[328937094,1718011844195,-152.71711912,0.00029265,2]
[328937095,1718011844206,-150.0,0.00029266,2]
[328937096,1718011844217,-150.0,0.00029269,2]
[328937097,1718011844229,-150.0,0.0002928,2]
[328937098,1718011844240,-150.0,0.00029284,2]
[328937099,1718011844251,-150.0,0.00029286,2]
[328937100,1718011844262,-150.0,0.00029286,2]
[328937101,1718011844273,-151.45,0.00029288,2]
[328937102,1718011844284,-150.0,0.00029288,2]
[328937103,1718011844295,-150.0,0.00029288,2]
[328937104,1718011844306,-150.0,0.00029288,2]
[328937105,1718011844317,-150.0,0.00029288,2]
[328937106,1718011844328,-150.0,0.00029288,2]
[328937107,1718011844338,-150.0,0.00029288,2]
[328937108,1718011844349,-150.0,0.00029288,2]
[328937109,1718011844361,-150.0,0.00029308,2]
[328937110,1718011844529,-150.0,0.00029318,2]
[328937111,1718011844546,-150.0,0.00029319,2]
[328937112,1718011844557,-150.0,0.00029322,2]
[328937113,1718011844567,-150.0,0.00029323,2]
[328937114,1718011844578,-1142.01602642,0.00029324,15]
[328937115,1718011844588,-643.86951467,0.00029332,2]
[328937116,1718011844599,-500.0,0.00029338,4]
[328937117,1718011844608,-507.87,0.00029338,4]
[328937118,1718011844618,-534.88,0.00029338,4]
[328937119,1718011844628,-500.0,0.00029338,4]
[328937120,1718011844638,-500.0,0.00029338,4]
[328937121,1718011844648,-946.32,0.00029338,4]
[328937122,1718011844658,-500.0,0.00029338,4]
[328937123,1718011844669,-500.0,0.00029338,4]
[328937124,1718011844679,-1419.84,0.00029338,4]
[328937125,1718011844689,-196.78628989,0.00029338,4]
[328937126,1718011844699,-622.1,0.00029338,4]
[328937127,1718011844710,-620.5,0.00029338,4]
[328937128,1718011844719,-500.0,0.00029338,4]
[328937129,1718011844729,-1080.16,0.00029338,4]
[328937130,1718011844739,-556.03,0.00029338,4]
[328937132,1718011844749,-500.0,0.00029338,4]
[328937134,1718011844759,-580.89,0.00029338,4]
[328937135,1718011844770,-500.0,0.00029338,4]
[328937136,1718011844784,-734.38,0.00029338,4]
[328937137,1718011844794,-500.0,0.00029338,4]
[328937138,1718011844804,-500.0,0.00029338,4]
[328937139,1718011844815,-500.0,0.00029338,4]
[328937140,1718011844825,-150.0,0.00029344,2]
[328937141,1718011844834,-150.0,0.00029344,2]
[328937142,1718011844844,-13546.49043718,0.00029345,15]
[328937143,1718011844856,-150.0,0.00029364,2]
[328937144,1718011844866,-500.0,0.00029366,4]
[328937145,1718011844877,-500.0,0.00029366,4]
[328937146,1718011844889,-500.0,0.00029366,4]
[328937147,1718011844899,-500.0,0.00029366,4]
[328937148,1718011844909,-500.0,0.00029366,4]
[328937149,1718011844920,-500.0,0.00029366,4]
[328937150,1718011844930,-500.0,0.00029366,4]
[328937151,1718011844940,-500.0,0.00029366,4]
[328937152,1718011844950,-500.0,0.00029366,4]
[328937153,1718011844960,-500.0,0.00029366,4]
[328937154,1718011844971,-500.0,0.00029366,4]
[328937155,1718011844981,-500.0,0.00029366,4]
[328937156,1718011844991,-500.0,0.00029366,4]
[328937157,1718011845001,-518.3,0.00029366,4]
[328937158,1718011845012,-500.0,0.00029366,4]
[328937159,1718011845022,-215.11084155,0.00029366,4]
[328937160,1718011845032,-500.0,0.00029366,4]
[328937161,1718011845042,-619.10704772,0.00029366,2]
[328937162,1718011845052,-500.0,0.00029366,4]
[328937163,1718011845062,-500.0,0.00029366,4]
[328937164,1718011845072,-500.0,0.00029366,4]
[328937165,1718011845082,-3488.49,0.00029366,4]
[328937166,1718011845092,-500.0,0.00029366,4]
[328937167,1718011845102,-951.05,0.00029366,4]
[328937168,1718011845112,-150.0,0.00029367,2]
[328937169,1718011845121,-150.0,0.00029367,2]
[328937170,1718011845131,-307.21457613,0.00029378,2]
[328937171,1718011845142,-150.0,0.0002938,2]
[328937172,1718011845151,-272.64496918,0.00029386,2]
[328937173,1718011845161,-3452.26037626,0.00029388,2]
[328937174,1718011845173,-514.0,0.000294,13]
[328937175,1718011845183,-345.0,0.000294,2]
[328937176,1718011845193,-691.0,0.000294,2]
[328937177,1718011845203,-160.0,0.000294,2]
[328937178,1718011845214,-2000.0,0.000294,2]
[328937179,1718011845223,-772.0,0.000294,18]
[328937180,1718011845233,-561.0,0.000294,8]
[328937181,1718011845243,-200.0,0.000294,2]
[328937182,1718011845252,-5796.07785981,0.000294,2]
[328937183,1718011845274,-481.85071861,0.000294,2]
[328937184,1718011845369,-8176.97169066,0.000294,2]
[328937185,1718011845379,-150.0,0.000294,6]
[328937186,1718011845391,-185.60269822,0.000294,2]
[328937187,1718011845401,-150.0,0.00029407,2]
[328937188,1718011845411,-836.0,0.00029413,2]
[328937190,1718011845420,-701.0,0.00029413,2]
[328937191,1718011845430,-150.0,0.00029428,2]
[328937192,1718011845441,-2106.639,0.00029431,2]
[328937193,1718011845451,-4039.34048175,0.00029445,2]
[328937205,1718011847619,-1000.0,0.00028418,2]
[328937206,1718011847629,-441.001,0.00028556,2]
[328937207,1718011847639,-2013.37147977,0.00029445,2]
[328937208,1718011847651,-8402.18830748,0.00029445,2]